Cogmind - Beta 15 @@@ ROGUE MODE // 2025.10.06 @ 19:10:10 Player: leek.801 Result: Destroyed by G-47 Trooper with Particle Gun Performance ------------- Evolutions (2) 1000 Regions Visited (6) 1200 Robots Destroyed (35) 175 Value Destroyed (855) 855 Prototype IDs (1) 20 Alien Tech Used (0) 0 Bonus (300) 300 TOTAL SCORE: 3550 Bonus ------- Aligned with FarCom 300 Cogmind --------- Core Integrity 0/550 Matter 185/300 Energy 100/100 System Corruption 0% Temperature Cool (18) Movement Core (50) Location -8/Materials Parts ------- > --- POWER (1) -------- (None) > --- PROPULSION (3) --- (None) > --- UTILITY (4) ------ (None) > --- WEAPON (3) ------- (None) > --- INVENTORY (5) ---- Ion Engine Improved Ion Engine Compact Wheel Medium Storage Unit Seismic Detector Peak State ------------ > --- POWER ------------ Ion Engine > --- PROPULSION ------- Armored Wheel Armored Wheel Armored Wheel > --- UTILITY ---------- Large Storage Unit Visual Processing Unit Signal Interpreter Seismic Detector > --- WEAPON ----------- Autogun Autogun Longsword +1 > --- INVENTORY -------- Ion Engine Improved Ion Engine Wheel Wheel Compact Wheel Medium Storage Unit Core Shielding Utility Shielding Assault Rifle Heavy Assault Rifle Heavy Assault Rifle Grenade Launcher [Rating: 25] Favorites ----------- Power Ion Engine Engine Ion Engine Propulsion Armored Wheel Leg Aluminum Leg Wheel Armored Wheel Utility Signal Interpreter Device Seismic Detector Storage Large Storage Unit Processor Signal Interpreter Protection Core Shielding Weapon Autogun Energy Gun Small Laser Ballistic Gun Autogun Launcher Grenade Launcher Slashing Weapon Longsword +1 Build | -11 -10 -9 -9 -9 -8 -8 ------- Run | Yrd Mat Mat Min Exi Min Mat Slots Evolved 4 | . . 2 . . . 2 Power . | . . . . . . . Propulsion 1 | . . 1 . . . . Utility 2 | . . 1 . . . 1 Weapon 1 | . . . . . . 1 Parts Attached 32 | 6 12 6 . 1 . 7 Power 4 | 1 2 1 . . . . Engine 4 | 1 2 1 . . . . Core . | . . . . . . . Reactor . | . . . . . . . Propulsion 8 | 2 4 1 . . . 1 Treads . | . . . . . . . Leg 2 | . 2 . . . . . Wheel 6 | 2 2 1 . . . 1 Hover . | . . . . . . . Flight . | . . . . . . . Utility 7 | 1 2 2 . . . 2 Device 1 | . . 1 . . . . Storage 2 | 1 1 . . . . . Processor 2 | . 1 . . . . 1 Hackware . | . . . . . . . Protection 2 | . . 1 . . . 1 Artifact . | . . . . . . . Weapon 13 | 2 4 2 . 1 . 4 Energy Gun 4 | 2 2 . . . . . Energy Cannon . | . . . . . . . Ballistic Gun 7 | . 2 2 . . . 3 Ballistic Cannon . | . . . . . . . Launcher 1 | . . . . . . 1 Special Weapon . | . . . . . . . Impact Weapon . | . . . . . . . Slashing Weapon 1 | . . . . 1 . . Piercing Weapon . | . . . . . . . Special Melee Weapon . | . . . . . . . Unidentified Prototypes 1 | . . . . 1 . . Parts Lost 14 | . 3 . . . . 11 Power 2 | . 1 . . . . 1 Propulsion 4 | . . . . . . 4 Utility 1 | . . . . . . 1 Weapon 7 | . 2 . . . . 5 Highest Loss Streak 11 | . 2 . . . . 11 To Critical Strikes . | . . . . . . . Average Backups 11 | 1 9 13 14 14 14 11 Power 1 | . 1 1 2 2 2 2 Propulsion 2 | . 3 3 3 3 3 2 Utility 2 | . . 3 4 4 4 3 Weapon 4 | . 4 5 5 5 5 3 Tool/Special . | . . . . . . . Unused Backups 9 | . 2 3 . 1 . 3 Power 4 | . 2 . . . . 2 Propulsion . | . . . . . . . Utility 1 | . . . . . . 1 Weapon 4 | . . 3 . 1 . . Tool/Special . | . . . . . . . Average Slot Usage (%) 96 | . 96 99 100 100 100 91 Engine 11 | . 13 11 11 11 11 7 Leg 2 | . 6 . . . . . Wheel 26 | . 21 33 33 33 33 24 Device 4 | . . 9 11 11 11 4 Storage 11 | . 14 11 11 11 11 8 Processor 12 | . 12 11 11 11 11 16 Protection 1 | . . 1 . . . 3 Energy Gun 9 | . 17 10 . . . . Ballistic Gun 15 | . 10 11 22 21 22 21 Peak Build Rating 25 | 6 11 15 15 21 16 25 Average Rating 13 | 4 9 14 15 15 16 19 On Entrance 11 | . 6 11 15 15 16 16 Naked Turns 20 | . . . . . . 20 Heaviest Build 35 | 13 29 32 32 32 32 35 Greatest Support 36 | 26 26 36 36 36 36 36 Greatest Overweight (x) 8 | . 1 . . . . 8 Average Overweight (x) . | . . . . . . . Largest Inventory Capacity 15 | 8 15 15 15 15 15 15 Average Capacity 13 | 7 12 15 15 15 15 14 Most Carried 15 | 4 15 14 14 14 14 14 Average Carried 11 | 1 9 13 14 14 14 11 Final Capacity 15 | 8 15 15 15 15 15 5 Final Carried 15 | 4 15 14 14 14 14 5 Class Distribution -------------------- 83% | Mutant 16% | Skirmisher Dominant Class ---------------- Mutant | -10/Materials Mutant | -9/Materials Mutant | -9/Mines Mutant | -9/Exiles Mutant | -8/Mines Skirmisher | -8/Materials Resources | -11 -10 -9 -9 -9 -8 -8 ----------- Run | Yrd Mat Mat Min Exi Min Mat Matter Collected 813 | 241 192 90 . . . 290 Remotely . | . . . . . . . Salvage Created 989 | . 411 146 . . . 432 Parts 59 | . 24 12 . . . 23 Haulers Intercepted 1 | . . . . . . 1 Recyclers Shooed . | . . . . . . . Parts Field Recycled . | . . . . . . . Retrieved Matter . | . . . . . . . Parts Self-Destructed . | . . . . . . . Prevented . | . . . . . . . Kills | -11 -10 -9 -9 -9 -8 -8 ------- Run | Yrd Mat Mat Min Exi Min Mat Combat Hostiles Destroyed 30 | . 14 6 . . . 10 Guns 23 | . 12 6 . . . 5 AOE 7 | . 2 . . . . 5 Classes Destroyed 7 | . 3 1 . . . 3 Worker 3 | . . . . . . 3 Hauler 1 | . . . . . . 1 Watcher 1 | . 1 . . . . . Swarmer 13 | . 8 4 . . . 1 Grunt 14 | . 6 1 . . . 7 Brawler 2 | . . . . . . 2 Sentry 1 | . . 1 . . . . Best Kill Streak 8 | . 5 4 . . . 8 Combat Bots Only 6 | . 5 4 . . . 6 Max Kills in Single Turn 3 | . 2 2 . . . 3 Gunslinging 1 | . . 1 . . . 1 Exploded 2 | . 2 . . . . 2 Melee . | . . . . . . . Uniques/NPCs Destroyed . | . . . . . . . Combat | -11 -10 -9 -9 -9 -8 -8 -------- Run | Yrd Mat Mat Min Exi Min Mat Hostile Shots Fired 280 | . 82 16 . . . 182 Missed 83 | . 23 3 . . . 57 Hits 197 | . 59 13 . . . 125 Melee 2 | . . . . . . 2 Projectile 195 | . 59 13 . . . 123 Critical Strikes 4 | . 1 1 . . . 2 Damage Taken 2393 | . 593 134 . . . 1666 Core 663 | . 74 30 . . . 559 Absorbed by Shields . | . . . . . . . Redirected to Shielding 29 | . . . . . . 29 Regen/Repaired (Parts) 103 | . 103 . . . . . Core Remaining (%) 87 | 100 70 . . . 92 . Volleys Fired 77 | . 41 14 . . . 22 Largest 3 | . 2 2 . . . 3 Hottest 80 | . 80 63 . . . 73 Shots Fired 156 | . 77 28 . . . 51 Gun 150 | . 77 28 . . . 45 Cannon . | . . . . . . . Launcher 6 | . . . . . . 6 Special . | . . . . . . . Kinetic 89 | . 30 14 . . . 45 Thermal 54 | . 40 14 . . . . Explosive 6 | . . . . . . 6 Electromagnetic 7 | . 7 . . . . . Robot Hit Streak 10 | . 8 6 . . . 10 Robot Miss Streak 6 | . 6 2 . . . 2 Penetration Max . | . . . . . . . Secondary Targets 7 | . 2 2 . . . 3 Max Gunslinging Chain 2 | . 1 1 . . . 2 Shots Hit Robots 101 | . 45 18 . . . 38 Core Hits 56 | . 19 9 . . . 28 Critical Kills . | . . . . . . . Critical Parts Destroyed 2 | . . . . . . 2 Critical Strikes 3 | . . . . . . 3 Destroy 2 | . . . . . . 2 Sever 1 | . . . . . . 1 Melee Attacks 7 | . . . . . . 7 Impact . | . . . . . . . Slashing 7 | . . . . . . 7 Piercing . | . . . . . . . Sneak Attacks 1 | . . . . . . 1 Combat Hostiles . | . . . . . . . Follow-up Attacks . | . . . . . . . Damage Inflicted 2267 | . 659 243 . . . 1365 Guns 1250 | . 550 239 . . . 461 Cannons . | . . . . . . . Explosions 843 | . 74 . . . . 769 Melee 121 | . . . . . . 121 Ramming 53 | . 35 4 . . . 14 Kinetic 805 | . 202 142 . . . 461 Thermal 437 | . 340 97 . . . . Explosive 769 | . . . . . . 769 Electromagnetic 82 | . 82 . . . . . Impact . | . . . . . . . Slashing 121 | . . . . . . 121 Piercing . | . . . . . . . Highest Corruption 5 | . 5 . . . . . Average Corruption 2 | . 2 . . . . . Corruption Purged . | . . . . . . . Corruption Blocked . | . . . . . . . Effects 4 | . 4 . . . . . Message Errors 2 | . 2 . . . . . Parts Fused 1 | . 1 . . . . . Misfires 1 | . 1 . . . . . Overload Shots . | . . . . . . . Overflow Damage 34 | . . . . . . 34 Projectiles . | . . . . . . . Explosions . | . . . . . . . Melee 34 | . . . . . . 34 Knockbacks . | . . . . . . . Impact . | . . . . . . . Kinetic . | . . . . . . . Secondary . | . . . . . . . Self-Inflicted Damage 59 | . 52 2 . . . 5 Shots 1 | . 1 . . . . . Rammed 11 | . 3 1 . . . 7 Targets Rammed 14 | . 6 1 . . . 7 Kicked 3 | . 3 . . . . . Crushed . | . . . . . . . Highest Temperature 124 | . 124 49 . . . 46 Average Temperature 27 | . 32 21 . . . 12 Received Heat Transfer 936 | . 114 39 . . . 783 Siege Activations . | . . . . . . . Martial Activations . | . . . . . . . Shielding Activations . | . . . . . . . Robots Disrupted . | . . . . . . . Combat Hostiles . | . . . . . . . Robots Corrupted . | . . . . . . . Combat Hostiles . | . . . . . . . Parts Fried . | . . . . . . . Impact Corruptions . | . . . . . . . Robots Melted . | . . . . . . . Combat Hostiles . | . . . . . . . Parts Melted 1 | . . 1 . . . . Heat Transferred 825 | . 600 225 . . . . Parts Sabotaged . | . . . . . . . Parts Stolen . | . . . . . . . Parts Stripped . | . . . . . . . Power Chain Reactions 1 | . 1 . . . . . Alert | -11 -10 -9 -9 -9 -8 -8 ------- Run | Yrd Mat Mat Min Exi Min Mat Maximum Alert Level 1 | . . . . . . 1 Low Security (%) 97 | 100 100 100 100 . 100 90 Level 1 2 | . . . . . . 9 Level 2 . | . . . . . . . Level 3 . | . . . . . . . Level 4 . | . . . . . . . Level 5 . | . . . . . . . High Security . | . . . . . . . Max Security . | . . . . . . . Peak Influence 237 | . 112 110 3 . . 237 Initial 3 | . . . 3 . . . Average 38 | . 31 44 2 . . 57 Influence Increases 923 | . 334 185 . . . 404 Destroy 0b10 Robot/C 600 | . 280 120 . . . 200 Destroy 0b10 Robot/NC 25 | . 5 . . . . 20 Destroy Leader 124 | . 32 30 . . . 62 Successful Hack 42 | . 14 5 . . . 23 Disable Machine 30 | . . 30 . . . . Destroy Structure 27 | . 3 . . . . 24 Lose Combat Pursuer 75 | . . . . . . 75 Influence Decreases 755 | . 334 176 9 . . 236 Entered New Map 6 | . . . 6 . . . Time Decay 619 | . 314 176 3 . . 126 Lost Part 130 | . 20 . . . . 110 Squads Dispatched 8 | . 1 2 . . . 5 Investigation 3 | . . . . . . 3 Extermination . | . . . . . . . Reinforcement 5 | . 1 2 . . . 2 Assault . | . . . . . . . Garrison . | . . . . . . . Intercept . | . . . . . . . Searches Triggered . | . . . . . . . Construction Impeded . | . . . . . . . Haulers Reinforced . | . . . . . . . Active Scanning Responses . | . . . . . . . Cargo Convoy Interrupts . | . . . . . . . Stealth | -11 -10 -9 -9 -9 -8 -8 --------- Run | Yrd Mat Mat Min Exi Min Mat Distress Signals 4 | . . 3 . . . 1 Communications Jammed . | . . . . . . . Distress Signals . | . . . . . . . Times Spotted 59 | . 19 13 . . . 27 Peak Tracking Total 9 | . 5 5 . . . 9 Tactical Retreats 4 | . . . . . . 4 Traps | -11 -10 -9 -9 -9 -8 -8 ------- Run | Yrd Mat Mat Min Exi Min Mat Traps Triggered 4 | . 3 . . . . 1 Indirectly . | . . . . . . . Trap Hack Attempts . | . . . . . . . Triggered . | . . . . . . . Disarmed . | . . . . . . . Reprogrammed . | . . . . . . . Reused . | . . . . . . . Traps Extracted . | . . . . . . . Installed . | . . . . . . . Triggered . | . . . . . . . Machines | -11 -10 -9 -9 -9 -8 -8 ---------- Run | Yrd Mat Mat Min Exi Min Mat Machines Disabled 2 | . . 2 . . . . Max in Single Turn 1 | . . 1 . . . . Machines Repaired . | . . . . . . . Machines Dismantled . | . . . . . . . Machines Sabotaged . | . . . . . . . Overloaded Fab Kills . | . . . . . . . Hacking | -11 -10 -9 -9 -9 -8 -8 --------- Run | Yrd Mat Mat Min Exi Min Mat Machines Accessed 16 | . 9 2 . 2 . 3 Terminals 12 | . 7 2 . . . 3 Fabricators . | . . . . . . . Repair Stations 1 | . 1 . . . . . Recycling Units 1 | . 1 . . . . . Scanalyzers . | . . . . . . . Garrison Access . | . . . . . . . Total Hacks 44 | . 23 5 . 7 . 9 Successful 27 | . 12 3 . 7 . 5 Failed 17 | . 11 2 . . . 4 Catastrophic 1 | . 1 . . . . . Database Lockouts . | . . . . . . . Manual 33 | . 19 4 . 1 . 9 Terminals 33 | . 19 5 . . . 9 Fabricators . | . . . . . . . Repair Stations 2 | . 2 . . . . . Recycling Units 2 | . 2 . . . . . Scanalyzers . | . . . . . . . Garrison Access . | . . . . . . . Terminal Hacks 10 | . 1 1 . 7 . 1 Record 7 | . . . . 7 . . Terminal Index 2 | . 1 . . . . 1 Alert Level 1 | . . 1 . . . . Fabricator Hacks . | . . . . . . . Repair Station Hacks 2 | . 2 . . . . . Scan Component 1 | . 1 . . . . . Repair 1 | . 1 . . . . . Recycling Unit Hacks 2 | . 2 . . . . . Report Inventory 1 | . 1 . . . . . Retrieve Components 1 | . 1 . . . . . Scanalyzer . | . . . . . . . Garrison Access Hacks . | . . . . . . . Unauthorized Hacks 13 | . 7 2 . . . 4 Terminals 13 | . 7 2 . . . 4 Assimilate 1 | . . . . . . 1 Botnet 5 | . 2 2 . . . 1 Skim 7 | . 5 . . . . 2 Fabricators . | . . . . . . . Repair Stations . | . . . . . . . Recycling Units . | . . . . . . . Scanalyzers . | . . . . . . . Garrison Access . | . . . . . . . Data Cores Recovered . | . . . . . . . Used . | . . . . . . . Hacking Detections 12 | . 7 2 . . . 3 Full Trace Events 2 | . . . . . . 2 Feedback Events . | . . . . . . . Feedback Blocked . | . . . . . . . Robot Schematics Acquired . | . . . . . . . Robots Built . | . . . . . . . Authchips . | . . . . . . . Time . | . . . . . . . Total Robot Build Rating . | . . . . . . . Part Schematics Acquired . | . . . . . . . Parts Built . | . . . . . . . Authchips . | . . . . . . . Time . | . . . . . . . Total Part Build Rating . | . . . . . . . Parts Repaired 1 | . 1 . . . . . Time 26 | . 26 . . . . . Parts Recycled . | . . . . . . . Recycled Matter . | . . . . . . . Retrieved Matter . | . . . . . . . Retrieved Components 2 | . 2 . . . . . Parts Scanalyzed . | . . . . . . . Part Schematics Acquired . | . . . . . . . Parts Damaged . | . . . . . . . Bothacking | -11 -10 -9 -9 -9 -8 -8 ------------ Run | Yrd Mat Mat Min Exi Min Mat Used RIF Installer . | . . . . . . . Robots Hacked . | . . . . . . . Non-combat . | . . . . . . . Combat . | . . . . . . . Robot Hacks Applied . | . . . . . . . Relay Couplers Released . | . . . . . . . Fabnet Peak Effective % . | . . . . . . . Robots Rewired . | . . . . . . . Allies Hacked . | . . . . . . . Hacks Repelled . | . . . . . . . Allies | -11 -10 -9 -9 -9 -8 -8 -------- Run | Yrd Mat Mat Min Exi Min Mat Total Allies . | . . . . . . . Largest Group . | . . . . . . . Highest-Rated Group . | . . . . . . . Highest-Rated Ally . | . . . . . . . Total Orders . | . . . . . . . Ally Attacks . | . . . . . . . Total Damage . | . . . . . . . Kills . | . . . . . . . Allies Corrupted . | . . . . . . . Allies Melted . | . . . . . . . Intel | -11 -10 -9 -9 -9 -8 -8 ------- Run | Yrd Mat Mat Min Exi Min Mat Active Infowar (turns) 1199 | . . 375 25 274 60 465 Optics 456 | . . . . . . 456 Seismic 936 | . . 375 25 274 60 202 Robot Analysis Total . | . . . . . . . Derelict Logs Recovered . | . . . . . . . Drone Launches . | . . . . . . . Drone Recoveries . | . . . . . . . Exploration | -11 -10 -9 -9 -9 -8 -8 ------------- Run | Yrd Mat Mat Min Exi Min Mat Turns Passed 2240 | 50 922 424 25 274 60 485 Spaces Moved 1727 | 42 637 362 23 300 57 306 Core 36 | 1 . . . . . 35 Treads . | . . . . . . . Legs 104 | . 104 . . . . . Wheels 1587 | 41 533 362 23 300 57 271 Hover . | . . . . . . . Flight . | . . . . . . . Fastest Speed 50 | 50 90 90 90 90 90 50 Average Speed 94 | 89 104 90 90 90 90 86 Slowest Speed 450 | 100 120 90 90 90 90 450 Overloaded Moves . | . . . . . . . Propulsion Burnouts . | . . . . . . . Robots Hopped . | . . . . . . . Potential Cave-ins . | . . . . . . . Cave-ins Triggered . | . . . . . . . Exploration Rate (%) 34 | 3 77 37 13 61 15 34 Regions Visited 6 Branch Regions 3 Pre-discovered Areas 1 | . 1 . . . . . Known Exits Taken 5 | . 1 1 1 1 1 . Unknown Exits Taken 1 | 1 . . . . . . Scrap Searched . | . . . . . . . Spaces Dug 5 | . . . . . . 5 Terrain Destroyed 26 | . 2 . . . . 24 Melee 5 | . . . . . . 5 Projectile . | . . . . . . . AOE 21 | . 2 . . . . 19 Terrain Rammed . | . . . . . . . Walls Destroyed . | . . . . . . . Machines Disabled . | . . . . . . . Actions | -11 -10 -9 -9 -9 -8 -8 --------- Run | Yrd Mat Mat Min Exi Min Mat Total 2174 | 51 821 435 27 303 65 472 Wait 264 | . 99 43 5 . 9 108 Move 1721 | 41 636 361 22 299 56 306 Hop . | . . . . . . . Pick Up 27 | 4 18 4 . 1 . . Fast Attach 12 | 6 5 1 . . . . Attach 10 | . 2 2 . . . 6 Detach . | . . . . . . . Swap 26 | . 5 3 . 2 . 16 Drop 16 | . 9 6 . 1 . . Fire 77 | . 41 14 . . . 22 Melee 7 | . . . . . . 7 Ram 11 | . 3 1 . . . 7 Kick 3 | . 3 . . . . . Crush . | . . . . . . . Escape Stasis . | . . . . . . . Rewire . | . . . . . . . Trap . | . . . . . . . Miscellaneous . | . . . . . . . Route ------- -11/Scrapyard -10/Materials (discovered 3 exits: *Mat x2 / Min) -9/Materials -9/Mines -9/Exiles -8/Mines -8/Materials History --------- Turn | Location | Event 29 | -11/Scrapyard | Discovered new exit (range 15) 51 | -11/Scrapyard | Entered Materials 327 | -10/Materials | Build established: Mutant 427 | -10/Materials | Discovered new exit (range 15) 673 | -10/Materials | Discovered new exit (range 9) 702 | -10/Materials | Identified exit to Materials 758 | -10/Materials | Identified exit to Mines 807 | -10/Materials | Repaired Med. Storage Unit 877 | -10/Materials | Learned location of Storage (-8) 924 | -10/Materials | Learned 2 Mines zone layouts 961 | -10/Materials | Learned Storage security intel 973 | -10/Materials | Entered another Materials area 973 | -9/Materials | Evolved 2 slots: Propulsion x1, Utility x1 1274 | -9/Materials | Met 8R-AWN 1386 | -9/Materials | Discovered new exit (range 12) 1396 | -9/Materials | Identified exit to Mines 1397 | -9/Materials | Entered Mines 1398 | -9/Mines | Followed 8R-AWN into the Mines 1419 | -9/Mines | Discovered new exit (range 5) 1421 | -9/Mines | Identified exit to Exiles 1422 | -9/Mines | Entered Exiles 1444 | -9/Exiles | Welcomed by 8R-AWN 1459 | -9/Exiles | Met EX-HEX 1488 | -9/Exiles | Met EX-BIN 1501 | -9/Exiles | Aligned with FarCom system 1502 | -9/Exiles | Given EX-Vault access code 1533 | -9/Exiles | Opened EX-Vault 1537 | -9/Exiles | Found Prototype Slashing Weapon 1538 | -9/Exiles | Identified Longsword +1 1569 | -9/Exiles | Warned to stay clear of 0b10 Research branches 1603 | -9/Exiles | Met EX-DEC 1660 | -9/Exiles | Learned about 8R-AWN's background 1684 | -9/Exiles | Discovered new exit (range 14) 1695 | -9/Exiles | Identified exit to Mines 1696 | -9/Exiles | Left Exiles lab with Longsword +1 1696 | -9/Exiles | Entered Mines 1751 | -8/Mines | Discovered new exit (range 5) 1755 | -8/Mines | Identified exit to Materials 1756 | -8/Mines | Entered Materials 1756 | -8/Materials | Evolved 2 slots: Utility x1, Weapon x1 2221 | -8/Materials | Core integrity fell below 50% 2221 | -8/Materials | Released all parts (4) 2238 | -8/Materials | Core integrity fell below 20% 2241 | -8/Materials | Destroyed by G-47 Trooper with Particle Gun Last Messages --------------- 02212_ K-01 Serf collects debris. 02213_ The unstable cave ceiling collapses. 02213_ Flight Unit crushed. 02213_ Autogun destroyed. 02213_ U-05 Engineer builds a Wall. 02215_ K-01 Serf collects debris. 02217_ Wheel destroyed. 02217_ U-05 Engineer builds a Wall. 02218_ Critical hit (Burn: +37). 02218_ Autogun destroyed. 02219_ K-01 Serf collects debris. 02221_ Released Signal Interpreter. 02221_ Released Lrg. Storage Unit. 02221_ Released Visual Processing Unit. 02221_ Released Wheel. 02222_ U-05 Engineer lays Concrete. 02223_ K-01 Serf collects debris. 02223_ U-05 Engineer lays Concrete. 02227_ Acquired 162 matter. 02238_ Slammed into G-47 Trooper. Map ----- +----------------------------------------------------+ | ?????????????????????????????????????????????????? | | ?????????????????????????????????????????????????? | | ?????????????????????????????????????????????????? | | ?????????????????????????????????????????????????? | | ?????????????????????????????????????????????????? | | ?????????????????????????????????????????????????? | | ?????????????????????????????????????????????????? | | ?????????????????????????????????????????????????? | | ?????????????????????????????????????????????????? | | ?????????????????????????????????????????????????? | | ?????????????????????????????????????????????????? | | ???????????????????????########??????????????????? | | ???????????????????????? #??????????????????? | | ?????????????????????????g #??????????????????? | | ?????????????????????????? ########???????????? | | ???????????????????????#### #!!==!!#???????????? | | ??????????????????????##! #!!==!!#???????????? | | ??????????????????????#! # #???????????? | | ??????????????????????#! # ###+######+## | | ??????????????????????#! !] ] | | ??????????????????????#! ! /!= Y | | ??????????????????????##! ! | | ?????????????????########## ############# | | ?????????????????# # #???????????? | | ?????????????????# """"" g# #???????????? | | ?????????????????# """"" @g #???????????? | | ?????????????????# """"" # =#???????????? | | ?#########???????# g # *%#???????????? | | ?# """"" #???????# """""g # [[[ *%[#???????????? | | ?# ""T"" #???????# """"" g# [[[ u==%###?????????? | | ?# #???????# """""s # [[[ =gu#%#?????????? | | ?# #???????# # = [*###?????????? | | ?#! #???????########## =* [=%####### ?? | | ?# """ ################## !%[ ? | | ?# """ / !! T | | ?# """ ################## = | | ?# #????????????????# "" """ ###### # | | =# #????????????????# """ Y"##???????#### | | # * #????????????????# """ """#???????????? | | ## %* #############????# #???????????? | | != % % ###### #???????????? | | !!! /== g g #### ###########?? | | ! ! !%! ###### #??# # """"""" #?? | | ## !#= ###########/########+##### # """"""" #?? | | # =#????# # ## # """"""" #?? | | # """ #????# # """ ## # """"""" #?? | | # """ ""#????# #"" """ ## + """"""" #?? | | # """ ""#????# #"T """ ## # #?? | | # """ T"#????# = #"" ## # ]#?? | | # ! ""#????# # ! + # ! / #?? | +----------------------------------------------------+ Best States ------------- Heat Dissipation 31 Energy Generation 10 Energy Capacity 250 Matter Stores 300 Matter Capacity 300 Sight Range 18 Terrain Scan Density 10 Core Shielding 20 Utility Shielding 33 Evasion (%) 55 Item Schematics ----------------- None Robot Schematics ------------------ None Fabricated ------------ Nothing Repaired ---------- Med. Storage Unit | 58% | -10/Materials Alien Tech Used ----------------- None Achievements -------------- None Challenges ------------ None Game ------ Seed GuidedPlasmaInitializer Manual? 0 Play Time 01:01:52 Cumulative 114.7 hours Start 2025.10.06 @ 11:10:09 End 2025.10.06 @ 19:10:10 Sessions 5 Manual Loads 0 Difficulty Rogue Special Mode None Game No. 123 Rogue 123 Adventurer 0 Explorer 0 Win Type - Total 0 Types 0/0/0/0/0/0/0/0/0/0 Lore% 15 Gallery% 24 Achievement% 23 Wizard Run 0 Options --------- Layout 2 ASCII 0 Keyboard 0 Movement Numpad Keybinds 0 Fullscreen 1 Font 24/Smallcaps Map View 50x44 Zoom Use 0% Tactical HUD 1 Map Filters NONE Filters NONE Steam 1 RUN: 0b727b73-04f8-4292-80bd-db930a838403